bitfinex/quotes_ETHUSD_20250129
["timestamp","ask_amount","ask_price","bid_price","bid_amount"]
[1738182591300,0.7785,3163.0,3162.1,0.005]
[1738182591301,0.394015,3162.8,3162.1,0.005]
[1738182591460,0.7785,3163.0,3162.1,0.005]
[1738182591667,3.16203,3162.6,3162.1,0.005]
[1738182591862,0.7785,3163.0,3162.1,0.005]
[1738182592064,3.94008,3163.0,3162.3,3.16224]
[1738182592280,3.16167,3162.9,3162.1,3.16743]
[1738182592503,3.16167,3162.9,3162.2,3.16234]
[1738182592795,3.16167,3162.9,3162.1,0.005]
[1738182593101,3.80939294,3163.3,3162.1,0.005]
[1738182593254,3.16213,3162.5,3162.1,0.005]
[1738182593459,3.16162,3163.0,3162.1,0.005]
[1738182593654,3.16146,3163.1,3162.1,0.005]
[1738182593892,3.54241829,3163.1,3162.1,0.005]
[1738182594098,3.54241829,3163.1,3162.3,3.16219]
[1738182595109,3.16127,3163.3,3162.5,3.16205]
[1738182595354,3.16028,3164.3,3163.6,3.16085]
[1738182595652,0.62328573,3165.1,3163.7,0.8061]
[1738182595812,3.1604,3164.2,3163.7,0.8061]
[1738182596012,3.1604,3164.2,3163.5,3.16104]
[1738182596224,3.1604,3164.2,3163.4,3.1611]
[1738182596454,3.16046,3164.1,3163.1,3.16142]
[1738182596666,3.16046,3164.1,3163.3,3.16117]
[1738182596846,3.16046,3164.1,3163.4,3.16109]
[1738182597011,0.63720542,3164.4,3162.9,0.8061]
[1738182597212,3.15994,3164.7,3163.8,3.16066]
[1738182597416,3.16025,3164.3,3163.6,3.16092]
[1738182597658,3.16008,3164.5,3163.7,3.16082]
[1738182597858,3.15985,3164.7,3163.8,3.16067]
[1738182598066,3.15985,3164.7,3163.0,3.80989444]
[1738182598260,3.15967,3164.9,3164.0,3.16049]
[1738182598261,3.15995,3164.6,3164.0,3.16049]
[1738182598443,0.8256,3164.8,3163.4,3.1611]
[1738182598655,0.8256,3164.8,3163.2,3.16133]
[1738182598656,3.16057,3164.0,3163.2,3.16133]
[1738182598959,3.476627,3164.0,3163.2,3.16133]
[1738182599131,3.16088,3163.7,3163.0,3.16151]
[1738182599328,3.16068,3163.9,3162.4,3.16215]
[1738182599562,3.16048,3164.1,3162.8,3.16175]
[1738182599729,0.62315919,3164.3,3163.4,3.16108]
[1738182599730,3.16026,3164.3,3163.4,3.16108]
[1738182600117,3.80203731,3164.6,3163.9,3.16057]
[1738182600354,0.2,3166.2,3163.9,3.16057]
[1738182600355,3.15952,3165.1,3164.4,3.16013]
[1738182600558,0.8177,3165.3,3164.5,3.16005]
[1738182600765,0.8177,3165.9,3164.5,0.316005]
[1738182600925,0.39574,3166.1,3165.0,3.15955]
[1738182601126,0.8187,3166.4,3164.9,0.7817]
[1738182601329,3.15872,3165.9,3165.1,3.15938]
[1738182601579,0.64796154,3166.2,3164.9,0.7817]
[1738182601750,3.15971,3164.9,3164.2,3.16034]
[1738182602076,0.7683,3166.1,3163.8,0.6319539]
[1738182602277,0.7683,3166.1,3164.3,3.0]
[1738182602490,0.8216,3166.7,3165.3,3.15916]
[1738182602692,3.15843,3166.2,3164.7,0.61961599]
[1738182602903,3.15858,3166.0,3164.7,0.61961599]
[1738182603188,3.15848,3166.1,3165.5,3.15904]
[1738182603499,3.15848,3166.1,3165.5,3.15905]
[1738182603700,3.15929,3165.3,3164.6,3.15989]
[1738182603853,3.15929,3165.3,3164.4,4.23132051]
[1738182603854,3.16005,3164.6,3164.4,1.07123051]
[1738182604191,3.16005,3164.5,3164.4,0.28753051]
[1738182604765,3.16005,3164.5,3163.4,3.92745]
[1738182604766,6.3195,3164.8,3163.4,0.7663]
[1738182605100,3.16105,3163.5,3162.6,3.16192]
[1738182605295,3.16105,3163.5,3162.8,3.16173]
[1738182605593,3.16117,3163.4,3162.7,3.16181]
[1738182605748,3.16146,3163.1,3162.3,3.16222]
[1738182605949,3.16172,3162.9,3162.3,3.16224]
[1738182606167,0.0075,3163.6,3162.1,0.005]
[1738182606372,3.16235,3162.2,3162.1,0.005]
[1738182607028,3.16235,3162.2,3162.1,1e-05]
[1738182607546,3.16235,3162.2,3161.6,2.1e-06]
[1738182607547,3.16285,3161.7,3161.6,2.1e-06]
[1738182607675,0.3769,3161.5,3158.5,0.1618321]
[1738182608018,0.3769,3160.2,3158.9,3.16565]
[1738182608202,3.16465,3160.0,3159.1,3.16544]
[1738182608386,3.16465,3160.0,3159.1,6.33086]
[1738182608715,0.3769,3160.2,3159.3,3.16523]
[1738182608917,3.16456,3160.0,3159.3,3.11525]
[1738182609122,0.3769,3160.2,3159.4,3.16512]
[1738182609426,0.797,3160.8,3158.6,0.93228297]
[1738182609586,3.16407,3160.5,3159.5,3.16505]
[1738182609787,3.16436,3160.2,3158.6,3.18699048]
[1738182609989,3.16414,3160.5,3158.9,3.16565]
[1738182610193,3.16434,3160.3,3159.5,3.16498]
[1738182610490,0.8145,3161.4,3158.9,4.06224219]
[1738182610708,3.16287,3161.7,3160.9,3.16362]
[1738182610908,3.16316,3161.4,3160.6,3.16387]
[1738182611128,3.16295,3161.7,3160.2,0.8069]
[1738182611271,3.16247,3162.1,3161.1,3.1634]
[1738182611469,3.16288,3161.7,3160.2,0.8069]
[1738182611705,1.01629608,3162.1,3161.0,3.16353]
[1738182611926,0.8145,3162.2,3161.6,3.1629]
[1738182612087,1.43668016,3162.9,3160.9,4.06224219]
[1738182612270,3.16142,3163.2,3162.4,3.16206]
[1738182612627,3.16198,3162.6,3161.8,3.16266]
[1738182612775,3.16198,3162.6,3161.2,3.99235]
[1738182612776,3.16204,3162.6,3161.2,0.829]
[1738182612977,0.8134,3163.4,3162.5,3.16196]
[1738182613199,3.97455,3163.4,3162.5,3.16197]
[1738182613408,3.16137,3163.2,3162.5,3.16197]
[1738182613704,0.8134,3163.4,3162.1,3.16245]
[1738182614035,3.16245,3162.1,3161.4,3.16307]
[1738182614191,3.16298,3161.6,3160.9,3.16355]
[1738182614389,3.163,3161.6,3160.7,3.93375]
[1738182614591,3.16225,3162.3,3160.5,3.16405]
[1738182614836,3.16312,3161.5,3160.1,0.7514]
[1738182615041,3.16259,3162.0,3160.2,3.16435]
[1738182615203,1.124675,3162.2,3160.4,3.16415]
[1738182615409,0.64576135,3162.0,3160.7,3.16376]
[1738182615735,0.64576135,3162.0,3160.1,0.7514]
[1738182615736,3.16265,3161.9,3160.1,0.7514]
[1738182615893,0.64576135,3162.0,3160.1,0.7514]
[1738182615894,3.16282,3161.8,3160.1,0.7514]
[1738182616092,0.64576135,3162.0,3160.1,0.7514]
[1738182616093,0.64576135,3162.0,3160.7,3.16384]
[1738182616311,3.16357,3161.0,3160.2,3.16435]
[1738182616510,0.64576135,3162.0,3160.6,3.16395]
[1738182616727,0.64576135,3162.0,3159.7,0.62393227]
[1738182616728,3.16343,3161.2,3159.7,0.62393227]
[1738182616894,0.8331,3160.7,3159.0,1.25021422]
[1738182617094,3.16482,3159.8,3159.0,3.92884]
[1738182617295,3.16405,3160.5,3159.0,3.92884]
[1738182617526,3.16449,3160.1,3159.1,3.16544]
[1738182617729,3.16395,3160.6,3159.7,3.1648]
[1738182617894,0.8331,3160.7,3159.1,3.16545]
[1738182618096,3.16384,3160.8,3160.0,3.16455]
[1738182618341,0.7805,3161.5,3159.3,3.16525]
[1738182618342,0.64272426,3161.2,3160.5,3.16399]
[1738182618644,0.64272426,3161.2,3159.7,3.16478]
[1738182618945,3.16377,3160.8,3159.9,3.16465]
[1738182619244,3.480217,3160.8,3159.7,3.16479]
[1738182619395,3.16426,3160.3,3158.5,0.1618321]
[1738182619601,3.16467,3159.9,3159.2,3.16535]
[1738182619925,3.16446,3160.1,3159.3,3.16518]
[1738182620242,3.16487,3159.7,3158.6,3.18702048]
[1738182620553,0.316487,3159.6,3159.2,3.16533]
[1738182620689,3.16507,3159.5,3158.7,3.16585]
[1738182620894,3.16507,3159.5,3158.8,3.16574]
[1738182621122,0.7902,3160.3,3158.6,0.02112048]
[1738182621338,3.16506,3159.5,3158.7,3.16582]
[1738182621660,3.481606,3159.5,3158.8,3.16573]
[1738182621809,0.7902,3160.3,3159.1,3.16544]
[1738182622011,0.0075,3160.2,3158.7,3.16584]
[1738182622221,0.0075,3160.2,3158.6,0.02112048]
[1738182622222,0.64903141,3160.2,3158.6,0.02112048]
[1738182622455,0.0075,3159.8,3158.6,0.02112048]
[1738182622607,3.16585,3158.7,3158.6,0.02112048]
[1738182622811,4.308835,3158.7,3158.6,0.02112048]
[1738182623362,4.308835,3158.7,3158.6,4.8e-07]
[1738182623653,4.94479393,3158.7,3158.6,4.8e-07]
[1738182624456,3.16595,3158.6,3158.5,2.58e-06]
[1738182624660,6.16595,3158.6,3157.1,0.005]
[1738182624866,3.16736,3157.2,3157.1,0.005]
[1738182625028,0.8073,3157.7,3157.1,0.005]
[1738182625445,3.16736,3157.2,3157.1,0.005]
[1738182625962,0.8073,3157.7,3157.1,0.005]
[1738182626312,0.8013,3158.8,3157.1,0.005]
[1738182626513,2.706,3160.7,3157.1,0.005]
[1738182626514,0.8013,3159.7,3158.3,3.16625]
[1738182626714,0.396611,3159.6,3157.3,0.7642]
[1738182626972,0.63571339,3159.3,3158.0,3.16649]
[1738182627125,0.316377,3160.8,3159.2,0.7642]
[1738182627528,3.16486,3159.7,3158.9,3.16556]
[1738182627728,3.16484,3159.8,3159.0,3.16549]
[1738182627927,0.7757,3159.8,3158.6,3.16595]
[1738182628162,0.7779,3160.7,3158.5,0.8257]
[1738182628315,0.7779,3161.3,3159.3,3.16517]
[1738182628530,3.94124,3161.3,3159.7,3.16477]
[1738182628735,0.7779,3161.3,3160.6,3.16388]
[1738182628932,0.7779,3161.3,3159.5,3.16505]
[1738182629156,0.7779,3161.3,3160.5,3.16397]
[1738182629338,3.16365,3160.9,3159.4,0.316517]
[1738182629534,3.16297,3161.6,3160.9,3.16355]
[1738182629736,0.757,3161.9,3161.2,3.16334]
[1738182629941,0.757,3161.9,3160.7,3.16377]
[1738182630180,3.16332,3161.3,3159.7,0.64078389]
[1738182630400,3.16307,3161.5,3159.7,3.16475]
[1738182630540,3.16359,3161.0,3160.3,3.1642]
[1738182630739,0.316307,3161.4,3160.5,3.16395]
[1738182630935,3.16343,3161.2,3160.5,3.16395]
[1738182631142,3.16473,3159.9,3159.2,3.16533]
[1738182631374,3.16473,3159.9,3159.0,0.7521]
[1738182631375,3.16509,3159.5,3158.7,3.16585]
[1738182631575,3.16567,3158.9,3158.5,0.7521]
[1738182631750,0.316509,3159.5,3158.5,3.16596]
[1738182631751,3.16526,3159.3,3158.5,3.16596]
[1738182631971,0.316509,3159.5,3158.2,3.16636]
[1738182632151,3.16534,3159.3,3158.6,3.16593]
[1738182632531,3.16578,3158.8,3157.9,0.7543]
[1738182632692,3.16538,3159.2,3157.9,0.7543]
[1738182632993,0.316538,3159.2,3157.9,1.39216835]
[1738182633195,3.1651,3159.5,3158.9,3.16564]
[1738182633493,3.1651,3159.5,3158.8,3.16567]
[1738182633642,3.16506,3159.5,3158.9,3.16565]
[1738182633998,3.16486,3159.7,3158.0,3.16656]
[1738182634176,3.16487,3159.7,3159.0,3.16554]
[1738182634338,3.16523,3159.4,3158.5,3.16598]
[1738182634543,3.16535,3159.3,3158.5,3.16598]
[1738182634789,3.16505,3159.5,3157.9,3.92094]
[1738182634997,3.16605,3158.6,3157.9,3.16664]
[1738182635200,3.16605,3158.6,3157.7,3.16685]
[1738182635201,3.16554,3159.1,3157.4,0.7999]
[1738182635484,3.16454,3160.1,3158.6,0.7644]
[1738182635485,0.8227,3159.9,3158.6,0.7644]
[1738182635668,3.98676,3160.5,3158.6,0.7644]
[1738182635998,3.16468,3159.9,3159.2,3.16532]
[1738182636204,3.16424,3160.4,3159.7,3.16485]
[1738182636406,3.16426,3160.3,3159.3,3.1652]
[1738182636567,0.316426,3160.2,3159.4,3.16515]
[1738182636909,3.16436,3160.2,3158.7,3.16585]
[1738182637203,0.8227,3160.5,3158.6,3.93032]
[1738182637204,3.16517,3159.4,3158.6,3.93032]
[1738182637351,3.16528,3159.3,3158.6,3.93032]
[1738182637553,0.0075,3160.4,3159.1,3.16537]
[1738182637784,0.8227,3160.5,3159.5,3.16505]
[1738182638098,5.66929,3162.3,3159.7,0.7954]
[1738182638099,0.7691,3161.0,3159.7,0.7954]
[1738182638401,3.93266,3161.0,3160.3,3.16418]
[1738182638601,0.7929,3161.9,3160.7,3.16383]
[1738182638799,0.7929,3161.9,3159.9,3.16465]
[1738182639009,3.16233,3162.3,3161.4,3.1631]
[1738182639209,3.16289,3161.7,3160.9,3.16357]
[1738182639503,3.16287,3161.7,3160.1,0.7799]
[1738182639709,3.16296,3161.6,3160.8,3.1637]
[1738182639888,0.0075,3161.8,3160.1,0.7799]
[1738182640197,0.802,3162.1,3161.5,3.16303]
[1738182640392,0.802,3162.1,3160.2,9.49305]
[1738182640393,0.802,3162.1,3161.6,3.16285]
[1738182640593,3.16221,3162.4,3161.6,3.16285]
[1738182640896,3.16231,3162.3,3161.7,3.16284]
[1738182641041,0.8161,3162.6,3161.7,3.16284]
[1738182641237,2.607,3164.3,3161.7,3.16284]
[1738182641238,0.8023,3163.1,3161.7,0.316284]
[1738182641443,0.8023,3163.9,3163.0,3.16155]
[1738182641679,3.16083,3163.8,3162.3,0.7566]
[1738182641862,3.16113,3163.5,3162.4,3.16215]
[1738182642063,0.632199,3163.5,3162.3,0.7566]
[1738182642287,3.16831,3163.8,3162.3,3.91882]
[1738182642453,3.16104,3163.6,3162.3,0.7566]
[1738182642790,1.44542835,3163.9,3162.3,0.7566]
[1738182642791,0.8023,3163.9,3162.3,0.7566]
[1738182642991,3.16204,3162.6,3161.8,0.8047]
[1738182643191,3.16218,3162.4,3161.8,3.96745]
[1738182643354,3.16204,3162.6,3161.8,0.8047]
[1738182643543,3.16253,3162.1,3161.8,0.8047]
[1738182643741,3.16204,3162.6,3161.7,3.16283]
[1738182643942,3.555424,3162.6,3161.8,3.16272]
[1738182644260,0.7666,3163.3,3162.8,3.16172]
[1738182644484,0.7666,3163.3,3161.6,3.16292]
[1738182644485,0.768,3164.1,3162.5,0.7809]
[1738182644788,3.16055,3164.0,3162.6,0.61779338]
[1738182644988,3.16055,3164.0,3163.3,3.16125]
[1738182645187,0.768,3164.1,3162.6,0.61779338]
[1738182645605,0.7965,3164.7,3162.7,3.16177]
[1738182645900,0.7965,3164.7,3162.5,0.7809]
[1738182645901,3.16025,3164.3,3162.5,0.7809]
[1738182646045,0.37831104,3164.2,3162.8,3.16167]
[1738182646241,0.62286037,3164.4,3162.5,0.7809]
[1738182646688,3.16035,3164.2,3162.6,3.16195]
[1738182646995,0.62286037,3164.4,3163.3,3.16124]
[1738182647160,0.0075,3164.3,3162.5,0.7809]
[1738182647363,3.16129,3163.3,3162.1,3.16245]
[1738182647564,3.16145,3163.1,3162.1,3.16245]
[1738182647764,0.316129,3163.2,3162.0,1.38420393]
[1738182647765,3.477529,3163.2,3162.0,1.38420393]
[1738182647948,3.16185,3162.7,3162.0,0.7587]
[1738182648156,3.16199,3162.6,3162.0,0.7587]
[1738182648497,3.16202,3162.6,3162.0,0.7587]
[1738182649004,3.16202,3162.6,3161.7,3.1628]
[1738182649005,3.79438,3162.6,3161.7,3.1628]
[1738182649152,3.16176,3162.8,3161.5,3.16305]
[1738182649509,3.16125,3163.3,3161.4,0.63461044]
[1738182649704,3.16125,3163.3,3162.6,3.16194]
[1738182649846,3.16125,3163.3,3161.4,0.63461044]
[1738182649847,3.16125,3163.3,3162.5,3.162]
[1738182650053,0.7989,3163.5,3162.3,3.16216]
[1738182650264,0.7989,3163.5,3162.2,3.16233]
[1738182650507,3.16206,3162.5,3161.5,0.62240518]
[1738182650798,0.316206,3162.5,3161.3,0.8308]
[1738182651094,3.79042619,3162.6,3160.9,3.16358]
[1738182651296,3.16287,3161.7,3160.7,3.92636]
[1738182651499,0.7881,3162.0,3160.4,0.15884277]
[1738182651705,3.16316,3161.4,3160.6,3.16388]
[1738182652001,0.7881,3162.0,3160.4,0.62676872]
[1738182652166,3.16277,3161.8,3160.8,3.16368]
[1738182652368,3.16277,3161.8,3160.4,0.62676872]
[1738182652369,0.395087,3161.8,3160.5,3.16396]
[1738182652556,3.16303,3161.6,3160.4,0.62676872]
[1738182652899,3.16286,3161.7,3160.8,3.16366]
[1738182653062,3.16286,3161.7,3160.4,0.62676872]
[1738182653063,3.1628,3161.8,3161.1,3.16342]
[1738182653268,0.7881,3162.0,3161.4,3.16305]
[1738182653602,0.7881,3162.0,3161.0,3.16352]
[1738182653799,0.0075,3161.9,3160.4,0.62676872]
[1738182654097,0.7881,3162.0,3160.4,0.62676872]
[1738182654300,0.8293,3162.6,3161.0,3.0]
[1738182654597,0.8293,3163.9,3162.5,3.95079]
[1738182654753,3.16026,3164.3,3162.6,3.16195]
[1738182654955,3.16026,3164.3,3162.5,35.7888]
[1738182654956,0.8293,3164.4,3163.1,3.16138]
[1738182655149,0.8293,3164.4,3162.5,35.7888]
[1738182655467,3.16061,3164.0,3162.6,3.12998842]
[1738182655667,3.16098,3163.6,3162.7,3.16185]
[1738182655864,3.1607,3163.9,3162.5,0.7888]
[1738182656094,1.47315897,3164.4,3163.2,3.16131]
[1738182656258,0.8293,3164.4,3162.7,6.16185]
[1738182656453,3.98948,3164.4,3163.8,3.16073]
[1738182656693,0.8293,3164.4,3163.5,3.16097]
[1738182656853,0.8293,3164.4,3163.0,0.64373241]
[1738182657058,9.47625,3165.8,3164.1,3.16044]
[1738182657393,3.15986,3164.7,3164.1,3.16044]
[1738182657751,3.16013,3164.5,3163.7,3.16082]
[1738182657952,0.8116,3164.8,3163.8,3.16075]
[1738182658288,3.97136,3164.8,3164.2,3.16029]
[1738182658467,3.15988,3164.7,3163.8,3.16072]
[1738182658676,0.8116,3164.8,3164.0,3.1605]
[1738182658908,3.15962,3165.0,3164.4,3.16013]
[1738182659114,3.15972,3164.9,3164.2,3.16031]
[1738182659311,3.79068982,3165.2,3164.4,3.16007]
[1738182659636,3.15971,3164.9,3164.2,3.16035]
[1738182659823,3.53929898,3165.1,3164.2,3.16035]
[1738182660164,3.15972,3164.9,3164.0,3.16055]
[1738182660349,3.15972,3164.9,3163.2,0.7859]
[1738182660350,3.15974,3164.9,3163.5,3.16096]
[1738182660516,3.16,3164.6,3163.9,3.16064]
[1738182660694,3.16013,3164.5,3163.8,3.16073]
[1738182660893,3.15986,3164.7,3163.9,3.16065]
[1738182661137,3.15847,3166.1,3164.2,3.1603]
[1738182661304,3.15946,3165.1,3164.4,3.16006]
[1738182661642,1.42012165,3165.4,3164.4,3.1601]
[1738182661790,3.15968,3164.9,3164.2,3.16033]
[1738182661995,4.57930165,3165.4,3163.8,3.1607]
[1738182662199,3.15932,3165.3,3164.0,3.16055]
[1738182662501,3.15975,3164.8,3163.6,0.63398752]
[1738182662771,3.15975,3164.8,3164.1,3.16044]
[1738182663123,3.16005,3164.5,3164.4,0.108327]
[1738182663326,6.99265,3164.5,3164.4,7e-06]
[1738182663640,3.0075,3164.4,3162.0,0.8136]
[1738182663855,0.7989,3162.8,3160.7,3.97744]
[1738182664184,3.16225,3162.3,3160.9,3.16358]
[1738182664384,0.64697679,3162.1,3160.2,0.61776134]
[1738182664521,3.16297,3161.6,3160.1,0.7501]
[1738182664843,0.8233,3162.3,3160.1,0.7501]
[1738182665038,0.8233,3162.3,3160.1,0.8501]
[1738182665356,3.16295,3161.7,3160.4,3.16408]
[1738182665560,3.16266,3161.9,3160.6,3.16395]
[1738182665869,3.16289,3161.7,3161.0,3.16348]
[1738182666030,0.8233,3162.3,3161.4,3.16307]
[1738182666224,0.8233,3162.3,3160.3,3.16419]
[1738182666225,0.8233,3162.3,3160.2,0.6377442]
[1738182666425,0.8191,3162.9,3162.6,3.16194]
[1738182666673,0.8191,3163.5,3161.6,3.16295]
[1738182666838,3.16115,3163.4,3162.4,3.16213]
[1738182667044,0.8191,3163.5,3162.9,3.16158]
[1738182667241,0.8191,3163.5,3163.1,3.16144]
[1738182667442,3.80529414,3164.0,3162.4,0.7597]
[1738182667653,0.7568,3164.0,3163.5,3.16104]
[1738182667864,0.7568,3164.7,3162.5,0.55]
[1738182668064,3.15863,3166.0,3165.1,3.15945]
[1738182668327,6.3169,3166.1,3164.7,3.1598]
[1738182668555,3.15945,3165.2,3163.8,0.7597]
[1738182668727,0.315945,3165.1,3163.8,0.7597]
[1738182668929,3.16015,3164.5,3163.7,3.16082]
[1738182669128,3.16008,3164.5,3163.7,3.16077]
[1738182669368,3.15965,3164.9,3163.2,3.91899]
[1738182669537,3.16004,3164.6,3163.7,3.16082]
[1738182669737,3.16096,3163.6,3162.9,3.16165]
[1738182669935,3.92463,3163.9,3162.9,3.16165]
[1738182670136,0.7639,3163.9,3162.7,0.8122]
[1738182670367,0.7639,3164.4,3163.6,3.1609]
[1738182670605,0.7639,3164.4,3163.5,3.16099]
[1738182670803,0.7639,3164.4,3163.7,3.16076]
[1738182671007,0.392403,3164.3,3162.8,0.29045104]
[1738182671156,0.7606,3164.9,3164.3,3.16025]
[1738182671565,3.15935,3165.2,3163.1,3.16145]
[1738182671566,3.15927,3165.3,3164.6,3.15995]
[1738182671759,0.7871,3165.4,3163.9,3.16061]
[1738182672108,3.15816,3166.4,3165.1,3.15937]
[1738182672109,3.9458,3165.9,3165.1,3.15937]
[1738182672277,1.497545,3165.9,3164.6,3.15994]
[1738182672605,1.497545,3165.9,3163.8,0.8155]
[1738182672606,0.7871,3165.9,3163.8,0.8155]
[1738182672908,3.15892,3165.7,3165.0,3.15952]
[1738182673107,3.94581,3165.9,3165.0,3.15952]
[1738182673108,3.15876,3165.8,3165.0,3.15952]
[1738182673308,3.15876,3165.8,3163.8,35.8155]
[1738182673309,0.0075,3165.8,3163.8,35.8155]
[1738182673467,3.15953,3165.1,3164.4,3.16014]
[1738182673661,0.0075,3165.8,3164.9,3.15965]
[1738182673878,3.15957,3165.0,3164.3,3.16017]
[1738182674085,3.94577,3165.9,3164.5,3.15996]
[1738182674282,3.15935,3165.3,3164.6,3.15987]
[1738182674484,3.15912,3165.5,3164.1,0.62464989]
[1738182674684,3.15912,3165.5,3164.8,3.15967]
[1738182674908,1.40428118,3165.9,3165.2,3.15929]
[1738182675119,3.15883,3165.8,3165.1,3.15944]
[1738182675411,0.7871,3165.9,3164.2,0.37851499]
[1738182675571,0.7871,3165.9,3165.5,3.15899]
[1738182675771,0.7871,3165.9,3165.3,3.15922]
[1738182675967,0.7871,3165.9,3164.2,0.37851499]
[1738182675968,3.15939,3165.2,3164.5,3.15996]
[1738182676231,0.0075,3165.8,3164.2,0.8215]
[1738182676507,3.15949,3165.1,3164.3,3.16025]
[1738182676714,3.15932,3165.3,3164.2,0.8215]
[1738182676865,3.1594,3165.2,3164.5,3.16004]
[1738182677066,3.15897,3165.6,3164.9,3.15962]
[1738182677319,0.7871,3165.9,3164.2,0.8215]
[1738182677612,0.7871,3165.9,3164.3,6.32045]
[1738182677819,0.7871,3165.9,3165.2,3.15927]
[1738182678000,3.96642,3166.4,3165.8,3.15875]
[1738182678199,3.15924,3165.4,3164.6,3.15995]
[1738182678398,3.15944,3165.2,3164.6,3.15993]
[1738182678597,3.15924,3165.4,3164.7,3.15983]
[1738182678598,3.15923,3165.4,3164.7,3.15983]
[1738182678788,0.7748,3165.3,3162.8,0.2]
[1738182678988,3.16001,3164.6,3163.8,3.16068]
[1738182679203,3.16692,3165.2,3163.2,0.8044]
[1738182679514,3.16692,3165.2,3162.6,4.22872551]
[1738182679515,0.8041,3164.5,3163.3,3.16121]
[1738182679685,3.1613,3163.3,3162.6,1.46076927]
[1738182680015,3.1613,3163.3,3161.8,3.16271]
[1738182680016,3.16197,3162.6,3162.0,3.16247]
[1738182680236,3.16125,3163.3,3161.9,0.8283]
[1738182680237,3.16135,3163.2,3161.9,0.8283]
[1738182680372,3.16137,3163.2,3162.5,3.16196]
[1738182680572,3.16146,3163.1,3162.5,3.16196]
[1738182680772,0.8041,3163.4,3162.7,3.16183]
[1738182681020,3.16126,3163.3,3162.7,3.16183]
[1738182681166,3.16148,3163.1,3162.5,3.16204]
[1738182681371,3.557786,3163.3,3162.6,3.16195]
[1738182681571,0.8041,3163.4,3162.9,3.16165]
[1738182681803,0.8273,3163.9,3163.3,3.16125]
[1738182682076,3.16129,3163.3,3162.6,3.16188]
[1738182682268,3.1611,3163.5,3162.8,3.16175]
[1738182682469,3.1611,3163.5,3162.6,3.16188]
[1738182682669,0.8273,3163.9,3163.2,3.16132]
[1738182682670,3.16076,3163.8,3163.2,3.16132]
[1738182682917,0.8273,3163.9,3163.2,3.16132]
[1738182683119,3.16085,3163.7,3162.5,3.16197]
[1738182683266,0.8273,3163.9,3162.2,3.16227]
[1738182683468,3.0075,3163.7,3161.1,3.16345]
[1738182683721,3.0,3163.4,3161.0,0.769]
[1738182683926,3.16863,3163.5,3161.0,0.769]
[1738182683927,3.16182,3162.8,3161.4,3.1631]
[1738182684067,3.16229,3162.3,3161.0,3.9325]
[1738182684422,3.16229,3162.3,3161.4,3.16313]
[1738182684719,0.7753,3162.9,3162.8,3.16175]
[1738182684866,0.8275,3163.5,3163.1,3.16142]
[1738182685342,0.64713863,3164.1,3163.3,3.16123]
[1738182685343,3.16066,3163.9,3163.3,3.16123]
[1738182685546,3.16078,3163.8,3163.2,3.16134]
[1738182685748,0.8126,3164.1,3163.2,3.16134]
[1738182686057,0.8126,3164.1,3162.3,3.16225]
[1738182686058,3.16096,3163.6,3162.3,3.16225]
[1738182686260,0.0075,3164.0,3163.3,3.16119]
[1738182686418,0.8126,3164.1,3163.5,3.161]
[1738182686617,0.8126,3164.1,3163.3,3.16124]
[1738182686859,1.209896,3164.1,3162.3,3.16225]
[1738182687162,3.15942,3165.2,3163.4,3.16115]
[1738182687320,3.15944,3165.2,3164.3,3.16016]
[1738182687514,0.8323,3165.6,3163.3,0.8009]
[1738182687715,3.16022,3164.4,3163.6,3.16088]
[1738182687915,3.868179,3164.4,3163.6,3.16088]
[1738182688111,0.7594,3164.5,3164.3,3.16023]
[1738182688360,3.15955,3165.0,3164.3,3.16016]
[1738182688669,3.15955,3165.0,3164.2,3.16029]
[1738182688965,0.7992,3165.8,3165.0,3.15955]
[1738182689153,4.353747,3165.8,3165.2,3.15928]
[1738182689329,3.15886,3165.7,3164.9,3.15965]
[1738182689534,3.15886,3165.7,3165.1,3.15945]
[1738182689727,3.15886,3165.7,3164.9,3.15965]
[1738182690060,1.194987,3165.8,3165.1,3.15944]
[1738182690265,0.7992,3165.8,3165.1,3.15941]
[1738182690484,0.7992,3165.8,3165.3,3.15924]
[1738182690782,3.15878,3165.8,3165.2,3.15934]
[1738182691155,3.15849,3166.1,3165.3,3.15918]
[1738182691352,0.456665,3166.0,3165.6,3.15893]
[1738182691551,0.7707,3166.2,3165.0,3.15955]
[1738182691785,0.63385426,3166.6,3164.4,3.16015]
[1738182691955,0.7759,3166.7,3166.1,3.15836]
[1738182692137,0.7759,3166.7,3165.4,3.15907]
[1738182692340,0.7759,3166.7,3164.4,0.7948]
[1738182692341,3.15889,3165.7,3164.4,0.7948]
[1738182692536,3.15796,3166.6,3164.7,3.15982]
[1738182692537,3.15917,3165.4,3164.7,3.15982]
[1738182692869,3.15907,3165.5,3164.8,3.15971]
[1738182693046,3.15933,3165.3,3164.4,0.7948]
[1738182693396,0.766,3165.6,3164.5,3.16005]
[1738182693552,3.15856,3166.0,3165.3,3.15924]
[1738182693751,0.7788,3166.1,3164.7,3.15985]
[1738182693980,0.393368,3166.6,3166.1,3.15842]
[1738182694193,3.15823,3166.4,3165.0,0.7668]
[1738182694394,3.15897,3165.6,3165.0,0.7668]
[1738182694592,3.15897,3165.6,3164.1,4.0685477]
[1738182694593,0.315823,3166.3,3165.1,3.15942]
[1738182694777,3.15875,3165.9,3165.1,3.15937]
[1738182694961,0.0075,3166.6,3165.2,3.15935]
[1738182695162,3.15864,3166.0,3165.2,3.15935]